fUSD/lending_fUSD_20250629
["ID","MTS","AMOUNT","RATE_DAILY","PERIOD"]
[368497474,1751190808322,-608.46,0.00032602,3]
[368497475,1751190808448,-916.39,0.00032602,3]
[368497476,1751190808460,-555.36,0.00032602,3]
[368497477,1751190808471,-573.71,0.00032602,3]
[368497478,1751190808480,-1033.94,0.00032602,3]
[368497479,1751190808490,-1394.52,0.00032602,3]
[368497480,1751190808500,-841.15,0.00032602,3]
[368497481,1751190808511,-18048.03,0.00032602,3]
[368497482,1751190808521,-698.3,0.00032602,3]
[368497483,1751190808533,-814.68,0.00032602,3]
[368497484,1751190808543,-860.32,0.00032602,3]
[368497485,1751190808553,-994.63,0.00032602,3]
[368497486,1751190808562,-817.07,0.00032602,3]
[368497487,1751190808571,-1083.78,0.00032602,3]
[368497488,1751190808581,-895.73,0.00032602,3]
[368497489,1751190808590,-1619.71,0.00032602,3]
[368497490,1751190808599,-2039.79,0.00032602,3]
[368497491,1751190808608,-627.15,0.00032602,3]
[368497492,1751190808617,-1338.17,0.00032602,3]
[368497493,1751190808626,-522.56,0.00032602,3]
[368497494,1751190808635,-5045.19,0.00032602,3]
[368497495,1751190808644,-732.19,0.00032602,3]
[368497496,1751190808653,-490.0,0.00032602,3]
[368497497,1751190808663,-2735.95,0.00032602,3]
[368497498,1751190808672,-1159.62,0.00032602,3]
[368497499,1751190808682,-557.27,0.00032602,3]
[368497500,1751190808691,-2798.62,0.00032602,3]
[368497501,1751190808701,-1735.18,0.00032602,3]
[368497502,1751190808710,-795.99,0.00032602,3]
[368497503,1751190808719,-2676.96,0.00032602,3]
[368497504,1751190808728,-890.5,0.00032602,3]
[368497505,1751190808737,-815.43,0.00032602,3]
[368497506,1751190808747,-2632.4,0.00032602,3]
[368497507,1751190808756,-490.0,0.00032602,3]
[368497508,1751190808765,-7199.68,0.00032602,3]
[368497509,1751190808774,-2287.33,0.00032602,3]
[368497510,1751190808783,-1083.86,0.00032602,3]
[368497511,1751190808792,-1198.65,0.00032602,3]
[368497512,1751190808803,-564.45,0.00032602,3]
[368497513,1751190808812,-490.0,0.00032602,3]
[368497514,1751190808821,-4926.93,0.00032602,3]
[368497515,1751190808830,-2111.85,0.00032602,3]
[368497516,1751190808839,-2504.77,0.00032602,3]
[368497517,1751190808848,-670.5,0.00032602,3]
[368497518,1751190808857,-9168.68,0.00032602,3]
[368497519,1751190808867,-1466.04,0.00032602,3]
[368497520,1751190808877,-148479.19,0.00032602,3]
[368497521,1751190808886,-995.99,0.00032602,3]
[368497522,1751190808896,-884.61,0.00032602,3]
[368497523,1751190808905,-1110.23,0.00032602,3]
[368497524,1751190808915,-3927.92,0.00032602,3]
[368497525,1751190808924,-1262.58,0.00032602,3]
[368497526,1751190808934,-490.0,0.00032602,3]
[368497527,1751190808943,-1550.57,0.00032602,3]
[368497528,1751190808953,-799.02,0.00032602,3]
[368497529,1751190808963,-4423.72,0.00032602,3]
[368497530,1751190808973,-1420.75,0.00032602,3]
[368497531,1751190808982,-2359.81,0.00032602,3]
[368497532,1751190808991,-612.29,0.00032602,3]
[368497533,1751190809001,-2220.09,0.00032602,3]
[368497534,1751190809011,-490.0,0.00032602,3]
[368497535,1751190809020,-1116.8,0.00032602,3]
[368497536,1751190809029,-300.559835,0.00032602,3]
[368497537,1751190809039,-1906.36,0.00032602,3]
[368497538,1751190809048,-2198.76,0.00032602,3]
[368497539,1751190809057,-850.38,0.00032602,3]
[368497540,1751190809066,-1730.15,0.00032602,3]
[368497541,1751190809076,-1635.41,0.00032602,3]
[368497542,1751190809085,-1477.82,0.00032602,3]
[368497543,1751190809095,-495.37,0.00032602,3]
[368497544,1751190809104,-3000.74,0.00032602,3]
[368497545,1751190809114,-924.29,0.00032602,3]
[368497546,1751190809123,-818.08,0.00032602,3]
[368497547,1751190809132,-1537.71,0.00032602,3]
[368497548,1751190809141,-1565.54,0.00032602,3]
[368497549,1751190809150,-1894.35,0.00032602,3]
[368497550,1751190809160,-707.33,0.00032602,3]
[368497551,1751190809169,-854.62,0.00032602,3]
[368497552,1751190809179,-490.0,0.00032602,3]
[368497553,1751190809189,-1990.15,0.00032602,3]
[368497554,1751190809199,-2120.63,0.00032602,3]
[368497555,1751190809209,-501.24,0.00032602,3]
[368497556,1751190809219,-1303.39,0.00032602,3]
[368497557,1751190809228,-2057.83,0.00032602,3]
[368497558,1751190809238,-1066.81,0.00032602,3]
[368497559,1751190809247,-1078.53,0.00032602,3]
[368497560,1751190809256,-829.05,0.00032602,3]
[368497561,1751190809266,-1514.01,0.00032602,3]
[368497562,1751190809276,-2549.31,0.00032602,3]
[368497563,1751190809285,-1413.24,0.00032602,3]
[368497564,1751190809294,-709.69,0.00032602,3]
[368497565,1751190809305,-490.0,0.00032602,3]
[368497566,1751190809314,-499.7,0.00032602,3]
[368497567,1751190809323,-1126.76,0.00032602,3]
[368497568,1751190809333,-1903.95,0.00032602,3]
[368497569,1751190809343,-7138.85,0.00032602,3]
[368497570,1751190809353,-421.56119386,0.00032602,3]
[368497571,1751190809363,-605.34,0.00032602,3]
[368497572,1751190809372,-1687.9,0.00032602,3]
[368497573,1751190809381,-624.57,0.00032602,3]
[368497574,1751190809390,-1080.18,0.00032602,3]
[368497575,1751190809398,-1199.32,0.00032602,3]
[368497576,1751190809408,-268.7469013,0.00032602,3]
[368497577,1751190809418,-1902.03,0.00032602,3]
[368497578,1751190809427,-685.5,0.00032602,3]
[368497579,1751190809436,-985.04,0.00032602,3]
[368497580,1751190809446,-2277.33,0.00032602,3]
[368497581,1751190809455,-3579.22,0.00032602,3]
[368497582,1751190809465,-1202.94,0.00032602,3]
[368497583,1751190809478,-490.0,0.00032602,3]
[368497584,1751190809487,-1406.03,0.00032602,3]
[368497585,1751190809497,-809.87,0.00032602,3]
[368497586,1751190809506,-1369.16,0.00032602,3]
[368497587,1751190809519,-2322.41,0.00032602,3]
[368497588,1751190809529,-11425.24,0.00032602,3]
[368497589,1751190809538,-892.36,0.00032602,3]
[368497590,1751190809548,-936.2,0.00032602,3]
[368497591,1751190809559,-7389.77,0.00032602,3]
[368497592,1751190809568,-2363.6,0.00032602,3]
[368497593,1751190809578,-1344.12,0.00032602,3]
[368497594,1751190809587,-490.0,0.00032602,3]
[368497595,1751190809597,-490.0,0.00032602,3]
[368497596,1751190809607,-1010.37,0.00032602,3]
[368497597,1751190809617,-3943.02,0.00032602,3]
[368497598,1751190809626,-719.55,0.00032602,3]
[368497599,1751190809636,-2127.37,0.00032602,3]
[368497600,1751190809646,-3378.38,0.00032602,3]
[368497601,1751190809656,-962.36,0.00032602,3]
[368497602,1751190809665,-1167.04,0.00032602,3]
[368497603,1751190809675,-2325.84,0.00032602,3]
[368497604,1751190809685,-1319.73,0.00032602,3]
[368497605,1751190809694,-509.95,0.00032602,3]
[368497606,1751190809704,-613.68,0.00032602,3]
[368497607,1751190809714,-2715.66,0.00032602,3]
[368497608,1751190809724,-1043.95,0.00032602,3]
[368497609,1751190809739,-1355.41,0.00032602,3]
[368497610,1751190809749,-1294.86,0.00032602,3]
[368497611,1751190809760,-2207.5,0.00032602,3]
[368497612,1751190809772,-545.36,0.00032602,3]
[368497613,1751190809782,-1588.45,0.00032602,3]
[368497614,1751190809792,-4741.41,0.00032602,3]
[368497615,1751190809803,-490.0,0.00032602,3]
[368497616,1751190809813,-826.61,0.00032602,3]
[368497617,1751190809823,-3228.0,0.00032602,3]
[368497618,1751190809834,-886.06,0.00032602,3]
[368497619,1751190809844,-1170.72,0.00032602,3]
[368497620,1751190809854,-9205.97,0.00032602,3]
[368497621,1751190809864,-1424.96,0.00032602,3]
[368497622,1751190809875,-2306.21,0.00032602,3]
[368497623,1751190809886,-3412.3,0.00032602,3]
[368497624,1751190809896,-728.26,0.00032602,3]
[368497625,1751190809906,-1625.19,0.00032602,3]
[368497626,1751190809915,-490.0,0.00032602,3]
[368497627,1751190809926,-1125.2,0.00032602,3]
[368497628,1751190809936,-736.63,0.00032602,3]
[368497629,1751190809947,-1386.0,0.00032602,3]
[368497630,1751190809957,-1073.8,0.00032602,3]
[368497631,1751190809967,-1530.28,0.00032602,3]
[368497632,1751190809978,-2006.57,0.00032602,3]
[368497633,1751190809988,-2091.51,0.00032602,3]
[368497634,1751190809998,-2126.77,0.00032602,3]
[368497635,1751190810008,-1779.52,0.00032602,3]
[368497636,1751190810018,-1673.45,0.00032602,3]
[368497637,1751190810028,-1303.39,0.00032602,3]
[368497638,1751190810038,-776.8,0.00032602,3]
[368497639,1751190810048,-490.0,0.00032602,3]
[368497640,1751190810058,-2000.1,0.00032602,3]
[368497641,1751190810068,-4507.51,0.00032602,3]
[368497642,1751190810078,-3480.9,0.00032602,3]
[368497643,1751190810089,-1935.08,0.00032602,3]
[368497644,1751190810101,-1632.66,0.00032602,3]
[368497645,1751190810111,-1569.37,0.00032602,3]
[368497646,1751190810122,-2530.56,0.00032602,3]
[368497647,1751190810136,-2452.49,0.00032602,3]
[368497648,1751190810147,-490.0,0.00032602,3]
[368497649,1751190810158,-1489.85,0.00032602,3]
[368497650,1751190810168,-1193.32,0.00032602,3]
[368497651,1751190810180,-2419.87,0.00032602,3]
[368497652,1751190810190,-1993.35,0.00032602,3]
[368497653,1751190810201,-588.25,0.00032602,3]
[368497654,1751190810212,-3522.67,0.00032602,3]
[368497655,1751190810223,-1690.76,0.00032602,3]
[368497656,1751190810234,-2018.73,0.00032602,3]
[368497657,1751190810245,-2243.02,0.00032602,3]
[368497658,1751190810256,-1621.16,0.00032602,3]
[368497659,1751190810267,-2069.08,0.00032602,3]
[368497660,1751190810278,-2803.72,0.00032602,3]
[368497661,1751190810288,-490.0,0.00032602,3]
[368497662,1751190810299,-490.0,0.00032602,3]
[368497663,1751190810311,-2344.83,0.00032602,3]
[368497664,1751190810322,-697.23,0.00032602,3]
[368497665,1751190810332,-1156.58,0.00032602,3]
[368497666,1751190810343,-1455.99,0.00032602,3]
[368497667,1751190810354,-896.46,0.00032602,3]
[368497668,1751190810365,-2847.6,0.00032602,3]
[368497669,1751190810377,-1697.89,0.00032602,3]
[368497670,1751190810388,-1196.0,0.00032602,3]
[368497671,1751190810399,-2317.49,0.00032602,3]
[368497672,1751190810411,-300.98,0.00032602,3]
[368497673,1751190810422,-4069.2,0.00032602,3]
[368497674,1751190810434,-1620.63,0.00032602,3]
[368497675,1751190810445,-24643.72,0.00032602,3]
[368497676,1751190810457,-499.82,0.00032602,3]
[368497677,1751190810468,-1069.72,0.00032602,3]
[368497678,1751190810481,-498.07,0.00032602,3]
[368497679,1751190810492,-4782.64,0.00032602,3]
[368497680,1751190810504,-3762.98,0.00032602,3]
[368497681,1751190810517,-1100.83,0.00032602,3]
[368497682,1751190810528,-1824.13,0.00032602,3]
[368497683,1751190810539,-725.1,0.00032602,3]
[368497684,1751190810551,-2504.1,0.00032602,3]
[368497685,1751190810563,-1607.63,0.00032602,3]
[368497686,1751190810575,-1132.25,0.00032602,3]
[368497687,1751190810587,-11678.75,0.00032602,3]
[368497688,1751190810599,-3607.16,0.00032602,3]
[368497690,1751190810611,-674.39,0.00032602,3]
[368497691,1751190810622,-2388.21,0.00032602,3]
[368497693,1751190810633,-632.01,0.00032602,3]
[368497694,1751190810644,-3749.55,0.00032602,3]
[368497695,1751190810655,-2478.96,0.00032602,3]
[368497696,1751190810666,-536.71,0.00032602,3]
[368497697,1751190810688,-1798.53,0.00032602,3]
[368497698,1751190810706,-490.0,0.00032602,3]
[368497699,1751190810724,-3221.5,0.00032602,3]
[368497700,1751190810744,-1629.68,0.00032602,3]
[368497701,1751190810759,-1535.71,0.00032602,3]
[368497702,1751190810779,-548.24,0.00032602,3]
[368497703,1751190810797,-2263.99,0.00032602,3]
[368497704,1751190810817,-1677.32,0.00032602,3]
[368497705,1751190810835,-6718.76,0.00032602,3]
[368497706,1751190810854,-1322.58,0.00032602,3]
[368497707,1751190810874,-857.93,0.00032602,3]
[368497708,1751190810887,-553.18,0.00032602,3]
[368497709,1751190810906,-18559.3,0.00032602,3]
[368497710,1751190810920,-490.0,0.00032602,3]
[368497711,1751190810937,-2586.37,0.00032602,3]
[368497712,1751190810960,-987.81,0.00032602,3]
[368497713,1751190810975,-1263.2,0.00032602,3]
[368497714,1751190810991,-698.11,0.00032602,3]
[368497715,1751190811007,-3862.63,0.00032602,3]
[368497716,1751190811022,-1943.16,0.00032602,3]
[368497717,1751190811040,-4122.27,0.00032602,3]
[368497718,1751190811057,-385.56152261,0.00032602,3]
[368497719,1751190811073,-826.74,0.00032602,3]
[368497720,1751190811088,-490.0,0.00032602,3]
[368497721,1751190811104,-490.0,0.00032602,3]
[368497722,1751190811120,-1385.92,0.00032602,3]
[368497723,1751190811135,-1552.69,0.00032602,3]
[368497724,1751190811151,-5320.1,0.00032602,3]
[368497725,1751190811167,-490.0,0.00032602,3]
[368497726,1751190811182,-2723.89,0.00032602,3]
[368497727,1751190811198,-2347.57,0.00032602,3]
[368497728,1751190811212,-1307.14,0.00032602,3]
[368497729,1751190811228,-2896.25,0.00032602,3]
[368497730,1751190811242,-1874.39,0.00032602,3]
[368497731,1751190811257,-4529.09,0.00032602,3]
[368497732,1751190811273,-2024.74,0.00032602,3]
[368497733,1751190811289,-919.31,0.00032602,3]
[368497734,1751190811305,-5682.59,0.00032602,3]
[368497735,1751190811322,-2104.31,0.00032602,3]
[368497736,1751190811337,-626.13,0.00032602,3]
[368497737,1751190811351,-1968.64,0.00032602,3]
[368497738,1751190811366,-620.43,0.00032602,3]
[368497739,1751190811380,-1770.11,0.00032602,3]
[368497740,1751190811396,-1764.06,0.00032602,3]
[368497741,1751190811410,-700.52,0.00032602,3]
[368497742,1751190811425,-2133.2,0.00032602,3]
[368497743,1751190811441,-1730.13,0.00032602,3]
[368497744,1751190811456,-2165.68,0.00032602,3]
[368497745,1751190811471,-883.4,0.00032602,3]
[368497746,1751190811487,-513.72,0.00032602,3]
[368497747,1751190811502,-1926.75,0.00032602,3]
[368497748,1751190811516,-5921.12,0.00032602,3]
[368497749,1751190811532,-432.31866641,0.00032602,3]
[368497750,1751190811545,-2141.99,0.00032602,3]
[368497751,1751190811559,-2043.04,0.00032602,3]
[368497752,1751190811574,-1625.9,0.00032602,3]
[368497753,1751190811589,-696.89,0.00032602,3]
[368497754,1751190811604,-3241.41,0.00032602,3]
[368497755,1751190811619,-631.01,0.00032602,3]
[368497756,1751190811635,-2087.25,0.00032602,3]
[368497757,1751190811648,-4543.11,0.00032602,3]
[368497758,1751190811662,-3866.16,0.00032602,3]
[368497759,1751190811675,-569.82,0.00032602,3]
[368497760,1751190811689,-1891.34,0.00032602,3]
[368497761,1751190811702,-855.58,0.00032602,3]
[368497762,1751190811716,-1931.12,0.00032602,3]
[368497763,1751190811730,-490.0,0.00032602,3]
[368497764,1751190811745,-1948.57,0.00032602,3]
[368497765,1751190811759,-1323.16,0.00032602,3]
[368497766,1751190811774,-971.22,0.00032602,3]
[368497767,1751190811789,-6890.33,0.00032602,3]
[368497768,1751190811803,-1740.09,0.00032602,3]
[368497769,1751190811816,-1509.17,0.00032602,3]
[368497770,1751190811831,-802.0,0.00032603,3]
[368497771,1751190811843,-453.0,0.00032603,3]
[368497772,1751190811857,-150.0,0.00032628,7]
[368497773,1751190811870,-150.0,0.00032647,7]
[368497774,1751190811884,-150.0,0.00032653,7]
[368497775,1751190811898,-150.0,0.00032665,7]
[368497776,1751190811913,-312.68872601,0.00032666,7]
[368497777,1751190811928,-294.80816015,0.00032666,7]
[368497778,1751190811943,-2043.46130184,0.00032693,27]
[368497779,1751190811957,-150.0,0.00032714,7]
[368497780,1751190811973,-150.0,0.00032729,7]
[368497781,1751190811989,-312.68872601,0.00032733,7]
[368497782,1751190812004,-294.80816015,0.00032733,7]
[368497783,1751190812019,-150.0,0.00032734,7]
[368497784,1751190812033,-239.84119403,0.00032757,2]
[368497785,1751190812049,-150.0,0.00032763,7]
[368497786,1751190812064,-150.0,0.00032786,7]
[368497787,1751190812078,-312.68872601,0.00032799,7]
[368497788,1751190812092,-294.80816015,0.00032799,7]
[368497789,1751190812107,-150.0,0.00032799,7]
[368497790,1751190812121,-150.0,0.00032814,7]
[368497791,1751190812136,-150.0,0.00032831,7]
[368497792,1751190812150,-150.0,0.00032858,7]
[368497793,1751190812164,-150.0,0.00032861,7]
[368497794,1751190812178,-312.68872601,0.00032865,7]
[368497795,1751190812193,-294.80816015,0.00032865,7]
[368497796,1751190812207,-150.0,0.00032874,7]
[368497797,1751190812222,-150.0,0.00032874,7]
[368497798,1751190812237,-1528.36,0.00032876,9]
[368497799,1751190812251,-626.57,0.00032876,3]
[368497800,1751190812265,-542.33,0.00032876,3]
[368497801,1751190812281,-847.37,0.00032876,3]
[368497802,1751190812296,-731.98,0.00032876,3]
[368497803,1751190812312,-490.0,0.00032876,3]
[368497804,1751190812328,-490.0,0.00032876,3]
[368497805,1751190812343,-943.56,0.00032876,3]
[368497806,1751190812358,-948.9,0.00032876,3]
[368497807,1751190812373,-667.1,0.00032876,3]
[368497808,1751190812388,-978.74,0.00032876,3]
[368497809,1751190812403,-642.29,0.00032876,3]
[368497810,1751190812418,-490.0,0.00032876,3]
[368497811,1751190812431,-1186.44,0.00032876,3]
[368497812,1751190812446,-490.0,0.00032876,3]
[368497813,1751190812461,-490.0,0.00032876,3]
[368497814,1751190812475,-2554.302964,0.00032876,3]
[368497815,1751190812489,-853.16,0.00032876,3]
[368497816,1751190812502,-2816.157543,0.00032876,3]
[368497817,1751190812518,-2200.380726,0.00032876,3]
[368497818,1751190812532,-151.959343,0.00032876,3]
[368497819,1751190812547,-500.85,0.00032876,3]
[368497820,1751190812561,-392.680419,0.00032876,3]
[368497821,1751190812575,-887.72,0.00032876,3]
[368497822,1751190812588,-556.18,0.00032876,3]
[368497823,1751190812601,-153.102854,0.00032876,3]
[368497824,1751190812615,-656.47,0.00032876,3]
[368497825,1751190812628,-571.97,0.00032876,3]
[368497826,1751190812642,-858.42,0.00032876,3]
[368497827,1751190812657,-490.0,0.00032876,3]
[368497828,1751190812672,-1167.71,0.00032876,3]
[368497829,1751190812685,-648.74,0.00032876,3]
[368497830,1751190812699,-167.777922,0.00032876,3]
[368497831,1751190812713,-642.42,0.00032876,3]
[368497832,1751190812726,-523.68,0.00032876,3]
[368497833,1751190812740,-580.01216629,0.00032876,3]
[368497834,1751190812754,-625.75,0.00032876,3]
[368497835,1751190812768,-1529.36,0.00032876,3]
[368497836,1751190812782,-725.47,0.00032876,3]
[368497837,1751190812798,-167.777922,0.00032876,3]
[368497838,1751190812813,-303.08847749,0.00032876,3]
[368497839,1751190812830,-1837.93,0.00032876,3]
[368497840,1751190812846,-961.81,0.00032876,3]
[368497841,1751190812862,-677.59,0.00032876,3]
[368497842,1751190812877,-490.0,0.00032876,3]
[368497843,1751190812893,-520.21123984,0.00032876,3]
[368497844,1751190812907,-811.6,0.00032876,3]
[368497845,1751190812921,-701.76,0.00032876,3]
[368497846,1751190812937,-801.55,0.00032876,3]
[368497847,1751190812953,-493.56,0.00032876,3]
[368497848,1751190812967,-490.0,0.00032876,3]
[368497849,1751190812981,-590.68,0.00032876,3]
[368497850,1751190812995,-490.0,0.00032876,3]
[368497851,1751190813010,-740.41,0.00032876,3]
[368497852,1751190813025,-930.82,0.00032876,3]
[368497853,1751190813040,-1134.82,0.00032876,3]
[368497854,1751190813056,-629.08,0.00032876,3]
[368497855,1751190813072,-507.56,0.00032876,3]
[368497856,1751190813085,-1395.58,0.00032876,3]
[368497857,1751190813101,-508.09,0.00032876,3]
[368497858,1751190813116,-596.83,0.00032876,3]
[368497859,1751190813131,-516.57,0.00032876,3]
[368497860,1751190813145,-1527.96,0.00032876,3]
[368497861,1751190813161,-2015.14,0.00032876,3]
[368497862,1751190813175,-615.0,0.00032876,3]
[368497863,1751190813189,-889.47,0.00032876,3]
[368497864,1751190813203,-2302.9,0.00032876,3]
[368497865,1751190813218,-945.27,0.00032876,3]
[368497866,1751190813231,-743.01,0.00032876,3]
[368497867,1751190813246,-643.27,0.00032876,3]
[368497868,1751190813260,-1940.61,0.00032876,3]
[368497869,1751190813274,-1952.95,0.00032876,3]
[368497870,1751190813289,-1201.96,0.00032876,3]
[368497871,1751190813304,-1310.06,0.00032876,3]
[368497872,1751190813319,-369.84,0.00032876,3]
[368497873,1751190813333,-1125.22,0.00032876,3]
[368497874,1751190813348,-1224.35,0.00032876,3]
[368497875,1751190813363,-976.06,0.00032876,3]
[368497876,1751190813377,-749.58,0.00032876,3]
[368497877,1751190813390,-1824.88,0.00032876,3]
[368497878,1751190813404,-603.75,0.00032876,3]
[368497879,1751190813418,-957.88,0.00032876,3]
[368497880,1751190813433,-578.61442344,0.00032876,3]
[368497881,1751190813449,-538.77,0.00032876,3]
[368497882,1751190813464,-776.78,0.00032876,3]
[368497883,1751190813479,-960.82,0.00032876,3]
[368497884,1751190813492,-413.25977969,0.00032876,2]
[368497885,1751190813506,-264.73199136,0.00032876,2]
[368497886,1751190813525,-356.79493079,0.00032876,2]
[368497887,1751190813539,-500.0,0.00032876,2]
[368497888,1751190813553,-500.0,0.00032876,2]
[368497889,1751190813569,-500.0,0.00032876,2]
[368497890,1751190813583,-500.0,0.00032876,2]
[368497891,1751190813600,-500.0,0.00032876,2]
[368497892,1751190813614,-500.0,0.00032876,2]
[368497893,1751190813628,-232.06987122,0.00032876,2]
[368497894,1751190813642,-606.60361308,0.00032876,2]
[368497895,1751190813657,-500.0,0.00032876,2]
[368497896,1751190813671,-500.0,0.00032876,2]
[368497897,1751190813684,-500.0,0.00032876,2]
[368497898,1751190813699,-500.0,0.00032876,2]
[368497899,1751190813712,-500.0,0.00032876,2]
[368497900,1751190813726,-500.0,0.00032876,2]
[368497901,1751190813741,-500.0,0.00032876,2]
[368497902,1751190813756,-500.0,0.00032876,2]
[368497903,1751190813770,-500.0,0.00032876,2]
[368497904,1751190813784,-290.66695782,0.00032876,2]
[368497905,1751190813799,-500.0,0.00032876,2]
[368497906,1751190813813,-500.0,0.00032876,2]
[368497907,1751190813827,-500.0,0.00032876,2]
[368497908,1751190813842,-500.0,0.00032876,2]
[368497909,1751190813856,-500.0,0.00032876,2]
[368497910,1751190813870,-500.0,0.00032876,2]
[368497911,1751190813884,-500.0,0.00032876,2]
[368497912,1751190813898,-500.0,0.00032876,2]
[368497913,1751190813911,-500.0,0.00032876,2]
[368497914,1751190813926,-500.0,0.00032876,2]
[368497915,1751190813940,-500.0,0.00032876,2]
[368497916,1751190814464,-500.0,0.00032876,2]
[368497917,1751190814481,-281.73343438,0.00032876,2]
[368497918,1751190814491,-500.0,0.00032876,2]
[368497919,1751190814501,-500.0,0.00032876,2]
[368497920,1751190814511,-500.0,0.00032876,2]
[368497921,1751190814520,-500.0,0.00032876,2]
[368497922,1751190814533,-500.0,0.00032876,2]
[368497923,1751190814542,-500.0,0.00032876,2]
[368497924,1751190814552,-500.0,0.00032876,2]
[368497925,1751190814561,-500.0,0.00032876,2]
[368497926,1751190814571,-500.0,0.00032876,2]
[368497927,1751190814581,-500.0,0.00032876,2]
[368497928,1751190814590,-500.0,0.00032876,2]
[368497929,1751190814600,-500.0,0.00032876,2]
[368497930,1751190814609,-500.0,0.00032876,2]
[368497931,1751190814619,-500.0,0.00032876,2]
[368497932,1751190814628,-894.84,0.00032876,3]
[368497933,1751190814637,-490.0,0.00032876,3]
[368497934,1751190814647,-1904.77,0.00032876,3]
[368497935,1751190814656,-406.1162637,0.00032876,2]
[368497936,1751190814666,-1462.39,0.00032876,3]
[368497937,1751190814676,-500.0,0.00032876,2]
[368497938,1751190814685,-500.0,0.00032876,2]
[368497939,1751190814695,-400.0,0.00032876,2]
[368497940,1751190814704,-2300.89,0.00032876,3]
[368497941,1751190814714,-650.78,0.00032876,3]
[368497942,1751190814723,-2228.41,0.00032876,3]
[368497943,1751190814733,-694.52,0.00032876,3]
[368497944,1751190814742,-490.0,0.00032876,3]
[368497945,1751190814752,-1649.19,0.00032876,3]
[368497946,1751190814761,-2026.94,0.00032876,3]
[368497947,1751190814771,-490.0,0.00032876,3]
[368497948,1751190814781,-843.7,0.00032876,3]
[368497949,1751190814791,-546.5745491,0.00032876,3]
[368497950,1751190814801,-571.61,0.00032876,3]
[368497951,1751190814811,-896.97,0.00032876,3]
[368497952,1751190814821,-594.67,0.00032876,3]
[368497953,1751190814831,-1147.84,0.00032876,3]
[368497954,1751190814840,-1556.08,0.00032876,3]
[368497955,1751190814850,-490.0,0.00032876,3]
[368497956,1751190814860,-1027.62,0.00032876,3]
[368497957,1751190814870,-707.16,0.00032876,3]
[368497958,1751190814879,-880.72,0.00032876,3]
[368497959,1751190814888,-792.35,0.00032876,3]
[368497960,1751190814898,-490.0,0.00032876,3]
[368497961,1751190814907,-780.47,0.00032876,3]
[368497962,1751190814917,-560.33,0.00032876,3]
[368497963,1751190814926,-1653.81,0.00032876,3]
[368497964,1751190814935,-525.19,0.00032876,3]
[368497965,1751190814945,-1620.77,0.00032876,3]
[368497966,1751190814955,-1900.77,0.00032876,3]
[368497967,1751190814964,-944.59,0.00032876,3]
[368497968,1751190814974,-521.24,0.00032876,3]
[368497969,1751190814983,-1487.61,0.00032876,3]
[368497970,1751190814993,-1556.78,0.00032876,3]
[368497971,1751190815003,-1633.03,0.00032876,3]
[368497972,1751190815013,-1046.71,0.00032876,3]
[368497973,1751190815022,-506.3,0.00032876,3]
[368497974,1751190815032,-514.5,0.00032876,3]
[368497975,1751190815041,-490.0,0.00032876,3]